bitfinex/quotes_ETHUSD_20241023
["timestamp","ask_amount","ask_price","bid_price","bid_amount"]
[1729694400439,6.39893861,2577.5,2577.1,0.24268691]
[1729694400634,3.88002,2577.3,2577.2,0.24267263]
[1729694400976,3.88002,2577.3,2576.9,4.67691]
[1729694401174,3.88002,2577.3,2576.9,5.71905367]
[1729694401353,3.88002,2577.3,2577.0,0.24268203]
[1729694401557,3.88002,2577.3,2577.1,0.24268203]
[1729694401757,3.88002,2577.3,2576.9,4.67691]
[1729694402052,3.88002,2577.3,2577.0,0.24268204]
[1729694402361,3.88002,2577.3,2577.1,0.24268204]
[1729694402559,3.88002,2577.3,2576.9,4.67691]
[1729694402779,3.88002,2577.3,2577.0,0.24268216]
[1729694402976,3.88002,2577.3,2577.1,0.24268216]
[1729694403275,7.75989,2577.4,2576.9,2.53152861]
[1729694403483,3.8801,2577.3,2577.0,0.24268134]
[1729694403656,3.8801,2577.3,2577.1,0.24268134]
[1729694403853,3.8801,2577.3,2576.9,6.41208861]
[1729694404073,3.8801,2577.3,2577.0,0.24268098]
[1729694404383,3.88002,2577.3,2577.1,0.24268098]
[1729694404589,3.88002,2577.3,2576.9,0.7963]
[1729694404880,3.88002,2577.3,2577.0,0.24268098]
[1729694405081,3.88002,2577.3,2577.1,0.24268116]
[1729694405244,3.87989,2577.4,2577.0,3.88047]
[1729694405587,7.48654901,2577.9,2577.2,1.73522861]
[1729694405588,3.87935,2577.8,2577.2,1.73522861]
[1729694405742,3.87948,2577.7,2577.3,4.89449057]
[1729694405943,3.87948,2577.7,2577.4,0.24268057]
[1729694406143,3.87948,2577.7,2577.5,0.24264475]
[1729694406383,3.87948,2577.7,2577.3,4.65181]
[1729694406584,3.87948,2577.7,2577.4,0.24264099]
[1729694406886,3.87948,2577.7,2577.4,0.05819562]
[1729694407246,3.87957,2577.6,2577.4,0.05819562]
[1729694408092,0.8036,2577.4,2576.9,0.8132]
[1729694408296,3.88035,2577.1,2576.8,0.05820331]
[1729694408457,3.88035,2577.1,2576.9,0.24267851]
[1729694408645,3.88035,2577.1,2577.0,0.24267851]
[1729694410654,3.88051,2577.0,2576.8,0.05820331]
[1729694410984,7.76077,2577.1,2576.9,0.24269711]
[1729694411187,3.88035,2577.1,2577.0,0.2426863]
[1729694411478,3.88049,2577.0,2576.8,0.05820331]
[1729694411652,3.88035,2577.1,2576.9,0.24268973]
[1729694411852,3.88035,2577.1,2576.8,0.05820331]
[1729694412078,3.88035,2577.1,2576.9,0.24269384]
[1729694412243,3.88035,2577.1,2577.0,0.24269384]
[1729694412641,3.95656431,2577.1,2577.0,0.24269384]
[1729694414492,5.69179292,2577.1,2577.0,0.24269384]
[1729694414658,3.88054,2577.0,2576.8,0.05820331]
[1729694414857,3.88054,2577.0,2576.9,0.24269727]
[1729694415385,6.36777861,2577.1,2576.8,0.05820331]
[1729694415594,3.88063,2576.9,2576.8,0.05820331]
[1729694415793,3.88049,2577.0,2576.8,0.30090635]
[1729694415978,3.88049,2577.0,2576.8,0.05820331]
[1729694416484,4.63255,2577.1,2576.8,0.05820331]
[1729694416754,3.88049,2577.0,2576.8,0.05820331]
[1729694417264,3.88063,2576.9,2576.8,0.05820331]
[1729694417461,3.88063,2576.9,2576.8,0.30090635]
[1729694417862,5.61585861,2576.9,2576.8,0.30090635]
[1729694418094,5.61585861,2576.9,2576.8,0.05820331]
[1729694418710,6.42935861,2576.9,2576.8,0.05820331]
[1729694419767,4.69413,2576.9,2576.8,0.05820331]
[1729694419966,0.8135,2577.1,2576.8,0.05820331]
[1729694420193,3.88013,2577.3,2576.8,0.05820331]
[1729694420491,3.88005,2577.3,2576.9,1.73522861]
[1729694420689,3.88026,2577.2,2576.9,0.64767019]
[1729694420919,3.88025,2577.2,2576.8,3.93891331]
[1729694421224,3.88025,2577.2,2576.9,0.24268704]
[1729694421587,3.88033,2577.1,2576.8,0.05820331]
[1729694421826,3.88025,2577.2,2576.9,0.24268862]
[1729694421997,3.88004,2577.3,2577.0,0.24268862]
[1729694422341,3.88004,2577.3,2576.8,1.79343192]
[1729694422342,3.88026,2577.2,2576.8,1.79343192]
[1729694422529,5.61526861,2577.3,2576.9,0.24268423]
[1729694422836,3.88024,2577.2,2576.8,0.05820331]
[1729694423124,3.88024,2577.2,2576.9,0.24268775]
[1729694423431,3.88024,2577.2,2576.8,0.05820331]
[1729694423726,3.88024,2577.2,2576.9,0.24268755]
[1729694423886,3.88024,2577.2,2576.8,3.93896331]
[1729694424083,3.88024,2577.2,2576.9,0.24268687]
[1729694424289,3.88024,2577.2,2576.8,1.79343192]
[1729694424623,3.88024,2577.2,2576.9,0.24268648]
[1729694424931,3.88024,2577.2,2576.8,0.05820331]
[1729694425090,3.88024,2577.2,2576.9,0.2426867]
[1729694425409,3.88024,2577.2,2576.8,0.05820331]
[1729694425608,3.88024,2577.2,2576.9,0.24268725]
[1729694425834,3.88024,2577.2,2576.8,0.05820331]
[1729694426129,2.52712861,2577.4,2577.0,2.50212861]
[1729694426130,3.87994,2577.4,2577.0,2.50212861]
[1729694426335,4.4871795,2577.5,2577.1,1.73522861]
[1729694426538,3.88013,2577.3,2577.1,0.24266744]
[1729694426891,7.76026,2577.3,2577.1,0.24266744]
[1729694427092,3.88013,2577.3,2577.1,0.24266744]
[1729694427705,0.07601739,2577.2,2577.1,0.24266744]
[1729694428119,3.88013,2577.3,2577.1,0.24266744]
[1729694428322,0.07604472,2577.2,2577.1,0.24266744]
[1729694429018,3.88013,2577.3,2577.1,0.24266744]
[1729694429350,0.07604472,2577.2,2577.1,0.24266744]
[1729694429713,3.88013,2577.3,2577.1,0.24266744]
[1729694429916,0.07604472,2577.2,2577.1,0.24266744]
[1729694430344,3.88013,2577.3,2577.1,0.48533685]
[1729694430511,3.95622472,2577.2,2577.1,0.24266744]
[1729694430711,3.95622472,2577.2,2577.1,0.48533697]
[1729694430912,3.95622472,2577.2,2577.1,0.24266744]
[1729694431108,6.52185333,2577.2,2577.1,0.24266744]
[1729694431552,4.78662472,2577.2,2577.1,0.24266744]
[1729694432130,4.82598644,2577.2,2577.1,0.24266744]
[1729694432718,6.56121505,2577.2,2577.1,0.24266744]
[1729694434254,3.88041,2577.1,2576.8,0.05820331]
[1729694434616,0.1152095,2577.0,2576.8,0.05820331]
[1729694434840,3.88048,2577.0,2576.8,0.05820331]
[1729694435049,0.1152095,2576.9,2576.8,0.05820331]
[1729694435214,0.1152095,2576.9,2576.8,0.30089703]
[1729694435625,3.88018,2577.2,2576.8,0.30089703]
[1729694435877,3.87999,2577.4,2577.0,1.73522861]
[1729694436026,3.87999,2577.4,2576.9,1.04769372]
[1729694436027,3.88003,2577.3,2576.9,4.68559]
[1729694436226,3.88003,2577.3,2577.0,0.24267851]
[1729694436448,3.88003,2577.3,2576.9,4.68559]
[1729694436720,3.88003,2577.3,2577.0,0.24267843]
[1729694436721,3.88002,2577.3,2577.0,0.24267843]
[1729694436924,3.88002,2577.3,2576.9,0.805]
[1729694436925,5.61524861,2577.3,2576.9,0.805]
[1729694437121,3.88019,2577.2,2577.0,0.24267999]
[1729694437325,3.88019,2577.2,2576.9,0.805]
[1729694437525,3.88019,2577.2,2577.0,0.24268756]
[1729694437773,3.88019,2577.2,2576.8,0.05820331]
[1729694437774,3.88048,2577.0,2576.8,0.05820331]
[1729694438129,3.88063,2576.9,2576.8,0.05820331]
[1729694438475,3.88048,2577.0,2576.8,0.30090932]
[1729694438771,3.88035,2577.1,2576.9,0.7516]
[1729694439058,3.88048,2577.0,2576.9,0.7516]
[1729694439314,3.88048,2577.0,2576.8,0.05820331]
[1729694439871,3.88035,2577.1,2576.8,0.05820331]
[1729694440027,3.88035,2577.1,2576.9,0.24269239]
[1729694440231,3.88035,2577.1,2576.8,0.05820331]
[1729694440430,3.88035,2577.1,2576.9,0.24269154]
[1729694440728,3.88035,2577.1,2576.8,0.05820331]
[1729694441264,3.88035,2577.1,2576.9,0.24269238]
[1729694441558,7.76076,2577.1,2576.8,0.05820331]
[1729694441758,3.88035,2577.1,2576.8,0.05820331]
[1729694442363,3.88035,2577.1,2576.9,0.2426949]
[1729694442659,0.11523141,2577.0,2576.8,0.05820331]
[1729694443071,0.11523141,2577.0,2576.9,0.24269465]
[1729694443238,0.11523141,2577.0,2576.9,0.24269542]
[1729694443938,0.11523141,2577.0,2576.8,0.05820331]
[1729694444441,1.73522861,2576.9,2576.8,0.05820331]
[1729694444650,3.88051,2577.0,2576.8,0.3009106]
[1729694444858,0.11522594,2576.9,2576.8,0.05820331]
[1729694445067,0.11522594,2576.9,2576.8,0.30090827]
[1729694445270,3.99585594,2576.9,2576.8,0.30090827]
[1729694445542,3.99585594,2576.9,2576.8,0.05820331]
[1729694446235,0.11522594,2576.9,2576.8,0.05820331]
[1729694446585,3.99585594,2576.9,2576.8,0.05820331]
[1729694446813,0.11522594,2576.9,2576.8,0.05820331]
[1729694447073,0.11522594,2576.9,2576.8,0.30090881]
[1729694447482,0.11522594,2576.9,2576.8,7.80285116]
[1729694447682,3.88001,2577.4,2576.9,3.8805]
[1729694447900,0.11515481,2577.3,2577.0,0.2427055]
[1729694448182,3.99526481,2577.3,2576.9,3.8805]
[1729694448342,3.99526481,2577.3,2577.0,0.24267755]
[1729694448541,3.99526481,2577.3,2576.9,3.8805]
[1729694448866,3.99526481,2577.3,2577.0,0.24267763]
[1729694448867,3.88019,2577.2,2577.0,0.24267763]
[1729694449064,3.88004,2577.3,2576.9,5.03162361]
[1729694449382,0.11515481,2577.2,2577.0,0.24267869]
[1729694449694,3.88004,2577.3,2576.9,5.03162361]
[1729694449846,0.11515481,2577.2,2577.0,0.24267878]
[1729694450046,5.61512861,2577.4,2577.1,0.24267537]
[1729694450247,0.11515481,2577.3,2576.9,5.03162361]
[1729694450555,0.11515481,2577.3,2577.0,0.24267831]
[1729694450773,0.11515481,2577.3,2577.1,0.2426756]
[1729694450944,0.11515481,2577.3,2576.9,5.03162361]
[1729694451453,0.11515481,2577.3,2577.1,3.8803]
[1729694451655,0.6073495,2577.5,2577.2,6.67918757]
[1729694451857,3.8793,2577.8,2577.4,3.87987]
[1729694452177,3.87951,2577.7,2577.3,1.79342425]
[1729694452385,3.87951,2577.7,2577.3,4.98274192]
[1729694452558,3.87951,2577.7,2577.4,0.24262513]
[1729694452759,3.87951,2577.7,2577.3,4.98274192]
[1729694452956,3.87951,2577.7,2577.4,0.24263393]
[1729694453153,3.87951,2577.7,2577.5,0.24263279]
[1729694453359,3.87951,2577.7,2577.3,6.71797053]
[1729694453579,3.87951,2577.7,2577.4,1.39159711]
[1729694453782,3.87951,2577.7,2577.4,1.1489659]
[1729694453946,5.61450861,2577.8,2577.4,1.1489659]
[1729694454147,5.61450861,2577.8,2577.3,3.93821564]
[1729694455482,3.87944,2577.7,2577.3,3.93821564]
[1729694455646,5.61466861,2577.7,2577.3,0.05819564]
[1729694456260,3.87965,2577.6,2577.3,0.05819564]
[1729694456661,5.61466861,2577.7,2577.3,3.93819564]
[1729694457690,0.11063558,2577.6,2577.3,3.93819564]
[1729694457893,0.11063558,2577.6,2577.3,4.97566607]
[1729694458283,0.11063558,2577.6,2577.3,1.09566607]
[1729694459360,1.84586419,2577.6,2577.3,1.09566607]
[1729694460201,5.61509861,2577.4,2577.3,0.05819564]
[1729694460559,5.72572326,2577.4,2577.3,0.05819564]
[1729694461506,3.99049465,2577.4,2577.3,0.05819564]
[1729694462005,0.11062465,2577.4,2577.3,0.05819564]
[1729694467416,0.11062465,2577.4,2577.3,0.84309564]
[1729694467787,3.87966,2577.6,2577.3,0.84309564]
[1729694467981,0.11069578,2577.4,2577.3,0.84309564]
[1729694468179,3.87966,2577.6,2577.3,0.84309564]
[1729694468408,0.11069578,2577.4,2577.3,0.84309564]
[1729694469504,3.99056578,2577.4,2577.3,0.05819564]
[1729694476023,0.11069578,2577.4,2577.3,0.05819564]
[1729694476234,0.11069578,2577.4,2577.3,4.70731564]
[1729694476421,0.11069578,2577.4,2577.3,5.42845877]
[1729694476622,3.87938,2577.8,2577.3,5.42845877]
[1729694476882,0.1106192,2577.4,2577.3,5.18580734]
[1729694477036,3.87938,2577.8,2577.3,5.42844194]
[1729694477037,7.75874,2577.8,2577.3,5.42844194]
[1729694477330,3.87945,2577.7,2577.4,0.24263418]
[1729694477530,3.9900692,2577.7,2577.3,5.18580734]
[1729694477691,3.9900692,2577.7,2577.4,0.24263747]
[1729694477892,3.9900692,2577.7,2577.3,5.18580734]
[1729694478122,3.9900692,2577.7,2577.4,0.24263528]
[1729694478430,3.9900692,2577.7,2577.3,5.18580734]
[1729694478604,0.1106192,2577.7,2577.4,0.24263564]
[1729694478803,0.1106192,2577.7,2577.5,0.24263316]
[1729694479002,3.87936,2577.8,2577.3,5.18570734]
[1729694479207,0.11071764,2577.6,2577.4,0.24263097]
[1729694479426,0.11072311,2577.7,2577.5,0.24263097]
[1729694479628,3.8795,2577.7,2577.3,0.82729564]
[1729694479801,3.99040311,2577.6,2577.3,0.82729564]
[1729694480001,3.87983,2577.5,2577.3,0.82729564]
[1729694480632,3.99059311,2577.4,2577.3,0.82729564]
[1729694480836,3.99059311,2577.4,2577.3,1.06995238]
[1729694481039,4.81209311,2577.4,2577.3,0.30085238]
[1729694481333,4.81209311,2577.4,2577.3,0.05819564]
[1729694482317,6.54783892,2577.4,2577.3,0.05819564]
[1729694483139,4.81209311,2577.4,2577.3,0.05819564]
[1729694484999,3.8804,2577.1,2576.9,0.8023]
[1729694485198,3.88063,2576.9,2576.8,0.05820331]
[1729694485622,3.88063,2576.9,2576.8,0.30090754]
[1729694485623,3.99124374,2576.9,2576.8,0.30090754]
[1729694486504,0.11061374,2576.9,2576.8,0.24270423]
[1729694487634,0.11061374,2576.9,2576.8,0.30090611]
[1729694487840,3.99124374,2576.9,2576.8,0.30090611]
[1729694488424,3.99124374,2576.9,2576.8,0.05820188]
[1729694488631,3.99124374,2576.9,2576.8,0.30090655]
[1729694488939,3.99124374,2576.9,2576.8,0.05820188]
[1729694489149,3.99124374,2576.9,2576.8,0.3009059]
[1729694489455,3.99124374,2576.9,2576.8,0.05820188]
[1729694491445,0.11061374,2576.9,2576.8,0.05820188]
[1729694492228,3.88055,2577.0,2576.8,0.05820188]
[1729694492432,3.9908006,2576.9,2576.8,0.05820188]
[1729694494835,0.1101706,2576.9,2576.8,0.05820188]
[1729694495340,3.9908006,2576.9,2576.8,0.05820188]
[1729694500752,4.7919006,2576.9,2576.8,0.05820188]
[1729694502882,0.9112706,2576.9,2576.2,0.8005]
[1729694503095,0.9112706,2576.9,2575.9,0.87078599]
[1729694503096,3.8819,2576.1,2575.9,0.87078599]
[1729694503260,4.65756,2576.5,2576.0,0.2427629]
[1729694503261,3.8817,2576.2,2576.0,0.2427629]
[1729694503457,3.8817,2576.2,2575.9,0.8005]
[1729694503762,3.8817,2576.2,2575.9,0.85871871]
[1729694504383,3.88132,2576.5,2576.0,4.66711]
[1729694504545,3.8815,2576.4,2576.0,0.7852]
[1729694504746,3.88176,2576.2,2576.0,0.7852]
[1729694505178,3.88176,2576.2,2575.9,0.05821871]
[1729694505451,3.88168,2576.2,2575.9,0.05821871]
[1729694506583,0.813,2576.3,2575.9,4.80308958]
[1729694506584,3.88154,2576.3,2575.9,4.80308958]
[1729694506747,4.66184,2576.5,2576.0,3.88197]
[1729694507084,3.88124,2576.5,2576.2,0.8293]
[1729694507257,3.88118,2576.6,2576.2,1.688603]
[1729694507454,4.66127,2576.9,2576.3,3.88152]
[1729694507685,3.88094,2576.7,2576.3,3.88152]
[1729694507986,3.88093,2576.7,2576.4,0.05821052]
[1729694509386,7.76178,2576.8,2576.5,0.8162]
[1729694509590,3.88063,2576.9,2576.5,1.29178505]
[1729694509756,3.88063,2576.9,2576.5,0.8162]
[1729694509757,3.88093,2576.7,2576.5,0.8162]
[1729694511474,3.88108,2576.6,2576.5,0.8162]
[1729694511682,3.88123,2576.5,2576.4,0.05821052]
[1729694511897,3.88108,2576.6,2576.4,0.05821052]
[1729694512075,7.76226,2576.6,2576.4,0.05821052]
[1729694513764,3.88123,2576.5,2576.4,0.05821052]
[1729694517564,3.99082051,2576.5,2576.4,0.05821052]
[1729694522454,5.72766663,2576.5,2576.4,0.05821052]
[1729694525456,3.99082051,2576.5,2576.4,0.05821052]
[1729694525963,0.10959051,2576.5,2576.4,0.84831052]
[1729694526166,0.10959051,2576.5,2576.4,2.8436723]
[1729694526454,3.88082,2576.8,2576.4,2.8436723]
[1729694526455,3.88082,2576.8,2576.4,1.10682618]
[1729694526617,0.10950841,2576.5,2576.4,1.10682618]
[1729694526817,3.88082,2576.8,2576.4,1.10682618]
[1729694527017,0.10950841,2576.5,2576.4,1.10682618]
[1729694527219,3.88082,2576.8,2576.4,4.98818618]
[1729694527441,0.10950841,2576.5,2576.4,4.98818618]
[1729694527630,1.73684612,2576.8,2576.4,1.10682618]
[1729694527826,0.10950841,2576.5,2576.4,4.98817618]
[1729694528032,3.88079,2576.8,2576.4,4.98817618]
[1729694528252,0.10988607,2576.5,2576.4,4.98817618]
[1729694528458,3.88079,2576.8,2576.4,4.98817618]
[1729694528660,0.10988607,2576.5,2576.4,4.98817618]
[1729694528835,3.88079,2576.8,2576.4,5.23090619]
[1729694529019,0.10988607,2576.5,2576.4,6.7250223]
[1729694529224,3.88095,2576.7,2576.4,1.34955466]
[1729694529424,0.10988607,2576.5,2576.4,0.84831052]
[1729694529635,3.88095,2576.7,2576.4,0.84831052]
[1729694529839,0.10986965,2576.5,2576.4,0.84831052]
[1729694530150,0.10986965,2576.5,2576.4,1.09104239]
[1729694530355,3.88095,2576.7,2576.4,1.5262852]
[1729694530663,0.10986965,2576.6,2576.5,0.24272672]
[1729694531378,0.10986965,2576.6,2576.5,0.24272774]
[1729694532141,0.10986965,2576.6,2576.5,0.24272532]
[1729694532653,3.8808,2576.8,2576.5,0.24272532]
[1729694532854,0.10985323,2576.6,2576.4,5.4076452]
[1729694533039,3.8808,2576.8,2576.5,1.1716331]
[1729694533243,3.8808,2576.8,2576.5,0.92890852]
[1729694533442,3.88093,2576.7,2576.4,1.5262852]
[1729694533669,3.88093,2576.7,2576.5,0.2427245]
[1729694533980,3.88093,2576.7,2576.4,0.84831052]
[1729694534175,5.61763612,2576.8,2576.4,0.84831052]
[1729694534378,3.88079,2576.8,2576.4,0.84831052]
[1729694534565,3.88079,2576.8,2576.5,0.24272944]
[1729694534772,3.88079,2576.8,2576.4,0.84831052]
[1729694534947,3.88079,2576.8,2576.5,0.24272961]
[1729694535284,3.88079,2576.8,2576.4,0.84831052]
[1729694535580,3.88079,2576.8,2576.5,0.24272511]
[1729694535784,3.88079,2576.8,2576.4,0.84831052]
[1729694535962,3.88079,2576.8,2576.5,0.24272453]
[1729694536172,3.88079,2576.8,2576.4,0.84831052]
[1729694536384,3.88079,2576.8,2576.5,0.24271958]
[1729694536572,3.88075,2576.9,2576.5,5.61806612]
[1729694536881,3.88075,2576.9,2576.6,1.03151841]
[1729694537127,7.76146,2576.9,2576.6,0.7888]
[1729694537411,3.88063,2576.9,2576.6,2.52564612]
[1729694537584,3.88063,2576.9,2576.6,1.53949144]
[1729694539376,3.88065,2576.9,2576.6,1.53949144]
[1729694539710,3.88065,2576.9,2576.6,0.7888]
[1729694540291,0.60747892,2577.0,2576.6,0.7888]
[1729694540613,4.48798892,2577.0,2576.6,4.66985]
[1729694540845,3.88067,2576.9,2576.6,0.7888]
[1729694541119,1.73684612,2576.9,2576.6,4.66987]
[1729694541408,1.73684612,2576.9,2576.6,5.2546239]
[1729694541618,4.48798892,2577.0,2576.6,5.2546239]
[1729694541916,1.73684612,2576.9,2576.6,5.2546239]
[1729694542686,1.73684612,2576.9,2576.6,1.3735539]
[1729694542926,1.73684612,2576.9,2576.6,5.2546139]
[1729694543325,5.61750612,2576.9,2576.6,1.3735539]
[1729694543501,1.73684612,2576.9,2576.6,1.3735539]
[1729694544009,1.73684612,2576.8,2576.7,0.24270136]
[1729694544214,1.73684612,2576.8,2576.6,5.2545139]
[1729694544529,1.73684612,2576.8,2576.7,0.4504116]
[1729694544750,1.73684612,2576.8,2576.7,0.69311146]
[1729694544922,1.73684612,2576.8,2576.7,0.4504116]
[1729694545857,1.73684612,2576.9,2576.7,0.4504116]
[1729694546551,6.22486504,2577.0,2576.7,0.4504116]
[1729694546719,6.22486504,2577.0,2576.6,5.2546139]
[1729694547549,2.34432504,2577.0,2576.6,5.2546139]
[1729694547715,0.11001193,2576.9,2576.6,5.2545539]
[1729694548052,0.11001193,2576.9,2576.7,4.12351059]
[1729694548258,0.11001193,2576.9,2576.8,4.43048645]
[1729694548551,0.11001193,2576.9,2576.8,4.67317663]
[1729694548757,1.73684612,2577.1,2576.8,4.43048645]
[1729694548936,0.11006117,2576.9,2576.7,3.88091]
[1729694549143,5.61733612,2577.0,2576.6,5.2546039]
[1729694549451,3.88049,2577.0,2576.7,0.24269633]
[1729694549656,3.88049,2577.0,2576.6,4.66985]
[1729694549861,3.88049,2577.0,2576.7,0.24269896]
[1729694550029,5.61733612,2577.0,2576.6,4.66985]
[1729694550214,5.61733612,2577.0,2576.7,0.24270197]
[1729694550415,3.88047,2577.1,2576.7,0.24270197]
[1729694550416,9.49778612,2577.1,2576.8,0.24269587]
[1729694550616,9.49778612,2577.1,2576.7,3.88091]
[1729694550844,5.61731612,2577.1,2576.8,0.2426948]
[1729694551039,5.61731612,2577.1,2576.7,3.88091]
[1729694551240,5.61731612,2577.1,2576.8,0.2426946]
[1729694551551,9.49775612,2577.1,2576.7,3.88091]
[1729694551758,5.61733612,2577.0,2576.8,0.24269555]
[1729694552058,5.61733612,2577.0,2576.6,4.66982]
[1729694552059,5.61733612,2577.0,2576.6,4.66979]
[1729694552294,5.61733612,2577.0,2576.7,0.24269933]
[1729694552468,5.61733612,2577.0,2576.8,0.24269933]
[1729694552673,5.61733612,2577.0,2576.6,4.66979]
[1729694552991,1.73684612,2576.9,2576.7,0.24270042]
[1729694553192,1.73684612,2576.9,2576.6,4.66978]
[1729694553493,2.53084612,2577.0,2576.7,0.24270831]
[1729694553658,6.41133612,2577.0,2576.8,0.24270831]
[1729694553854,6.41133612,2577.0,2576.6,8.55076]
[1729694554074,6.41133612,2577.0,2576.7,0.24270355]
[1729694554276,1.73684612,2576.9,2576.8,0.24270355]
[1729694554860,6.41133612,2577.0,2576.8,0.24270355]
[1729694555063,1.73684612,2576.9,2576.6,4.66976]
[1729694555273,6.41133612,2577.0,2576.7,0.24270562]
[1729694555474,6.41133612,2577.0,2576.6,4.66976]
[1729694555679,6.41133612,2577.0,2576.7,0.24270334]
[1729694555896,6.41133612,2577.0,2576.6,0.7888]
[1729694556109,3.88064,2576.9,2576.7,0.24270789]
[1729694556406,3.88064,2576.9,2576.6,0.7888]
[1729694556570,3.88064,2576.9,2576.7,0.24271028]
[1729694556771,3.88064,2576.9,2576.6,0.7888]
[1729694556978,3.88064,2576.9,2576.7,0.24270886]
[1729694557167,0.794,2577.0,2576.8,0.24271031]
[1729694557475,6.41141612,2577.0,2576.6,0.7888]
[1729694557674,3.88065,2576.9,2576.7,0.24270166]
[1729694557873,3.88065,2576.9,2576.8,0.24270166]
[1729694558209,6.41141612,2577.0,2576.8,0.24270166]
[1729694558412,3.88063,2576.9,2576.6,0.7888]
[1729694558572,3.88063,2576.9,2576.7,0.24270732]
[1729694558775,3.88063,2576.9,2576.8,0.24270817]
[1729694559118,3.88063,2576.9,2576.6,0.7888]
[1729694559284,3.88063,2576.9,2576.8,0.24270751]
[1729694559631,3.88063,2576.9,2576.6,0.7888]
[1729694559911,3.88063,2576.9,2576.7,0.2427105]
[1729694560108,3.88063,2576.9,2576.6,0.7888]
[1729694560311,3.88063,2576.9,2576.7,0.24271062]
[1729694560613,3.88084,2576.8,2576.4,3.93957052]
[1729694560808,3.88084,2576.8,2576.5,0.24271799]
[1729694561019,3.88084,2576.8,2576.6,0.24271799]
[1729694561173,3.88084,2576.8,2576.4,3.93957052]
[1729694561174,5.61768612,2576.8,2576.4,3.93957052]
[1729694561378,3.88084,2576.8,2576.5,0.2427173]
[1729694561576,3.88093,2576.7,2576.6,0.2427173]
[1729694561888,3.88114,2576.6,2576.4,0.05821052]
[1729694562599,0.11007213,2576.5,2576.4,0.05821052]
[1729694562795,3.99130213,2576.5,2576.4,0.30095073]
[1729694563006,5.72814825,2576.5,2576.4,0.30095073]
[1729694563171,3.8816,2576.3,2575.9,0.8539555]
[1729694563378,3.88169,2576.2,2576.0,0.24276949]
[1729694563577,0.10997363,2576.1,2575.9,0.7835]
[1729694563817,0.10997363,2576.1,2576.0,0.24277559]
[1729694564195,3.88154,2576.3,2576.0,0.24277559]
[1729694564380,0.10997363,2576.2,2575.9,0.7835]
[1729694564714,3.88154,2576.3,2576.1,0.05821878]
[1729694567300,5.61822612,2576.4,2576.1,0.05821878]
[1729694567301,3.88168,2576.2,2576.1,0.05821878]
[1729694577431,3.8814,2576.4,2576.1,0.05821878]
[1729694577629,0.10582896,2576.3,2576.1,0.05821878]
[1729694577831,0.10582896,2576.3,2576.1,0.70750227]
[1729694578049,3.88108,2576.6,2576.2,2.54464612]
[1729694578344,3.88108,2576.6,2576.3,1.73684612]
[1729694578345,0.105818,2576.5,2576.3,1.73684612]
[1729694579752,0.105818,2576.5,2576.2,2.54464612]
[1729694579940,0.105818,2576.5,2576.2,0.8078]
[1729694580135,3.987068,2576.5,2576.2,1.52895886]
[1729694580341,3.88153,2576.3,2576.1,0.05821878]
[1729694580651,7.86949399,2576.2,2575.8,4.68356]
[1729694580835,3.98773399,2576.2,2575.8,6.42040612]
[1729694581039,3.98773399,2576.2,2575.8,4.68356]
[1729694581237,3.98773399,2576.2,2575.9,1.73684612]
[1729694581238,0.10605399,2576.2,2575.9,1.73684612]
[1729694581438,3.88156,2576.3,2575.9,1.73684612]
[1729694581644,0.10610335,2576.2,2576.1,3.88183]
[1729694581871,0.10610335,2576.2,2576.0,0.8195]
[1729694581872,3.88134,2576.5,2576.0,0.8195]
[1729694582198,3.9838072,2576.4,2576.0,0.8195]
[1729694583270,3.9838072,2576.4,2576.0,6.43824612]
[1729694584565,0.1023472,2576.4,2576.0,6.43824612]
[1729694584771,0.1023472,2576.4,2576.1,1.037851]
[1729694585073,3.9837572,2576.4,2576.1,1.037851]
[1729694585378,0.1023472,2576.4,2576.2,5.61844612]
[1729694585537,0.1023472,2576.4,2576.3,0.7664]
[1729694585737,7.76203,2576.7,2576.3,1.51643297]
[1729694585967,0.10105602,2576.4,2576.3,1.51643297]
[1729694586169,7.76203,2576.7,2576.3,1.51643297]
[1729694586374,0.10105602,2576.4,2576.3,1.51643297]
[1729694586577,7.76202,2576.7,2576.3,1.51643297]
[1729694586741,0.10105602,2576.4,2576.3,1.51643297]
[1729694586940,3.8811,2576.6,2576.3,1.51643297]
[1729694587176,0.10105602,2576.4,2576.3,1.51643297]
[1729694587781,3.88093,2576.7,2576.3,5.64069478]
[1729694587943,0.10111639,2576.4,2576.3,5.39796297]
[1729694588142,3.88093,2576.7,2576.3,1.75916783]
[1729694588359,0.10073017,2576.4,2576.3,5.39795297]
[1729694588672,0.10073017,2576.4,2576.3,1.75916674]
[1729694588846,3.88111,2576.6,2576.3,1.7591655]
[1729694589046,0.10073017,2576.5,2576.3,0.7664]
[1729694589938,0.10073017,2576.5,2576.3,4.64791]
[1729694590275,3.88108,2576.6,2576.3,0.7664]
[1729694590450,0.10082343,2576.5,2576.4,0.0582063]
[1729694593783,3.88093,2576.7,2576.4,0.0582063]
[1729694593949,0.10082343,2576.5,2576.4,0.0582063]
[1729694594150,3.88093,2576.7,2576.4,0.0582063]
[1729694594346,0.10082343,2576.5,2576.4,0.0582063]
[1729694594578,3.88093,2576.7,2576.4,0.0582063]
[1729694595078,0.10082343,2576.6,2576.4,0.0582063]
[1729694595550,3.98190343,2576.6,2576.3,0.7664]
[1729694595750,3.88108,2576.6,2576.3,0.7664]
[1729694595951,0.10082343,2576.5,2576.3,0.7664]
[1729694597048,0.10082343,2576.5,2576.3,4.64793]
[1729694597379,3.88094,2576.7,2576.3,5.2941703]
[1729694597677,5.61778612,2576.7,2576.3,4.64793]
[1729694597884,0.10082343,2576.6,2576.3,4.64793]
[1729694598472,3.0,2577.1,2576.5,1.73684612]
[1729694598473,4.70208,2577.1,2576.5,1.73684612]
[1729694598782,3.98144283,2577.0,2576.7,0.88970972]
[1729694598984,0.10087283,2577.0,2576.7,0.88970972]
[1729694599146,0.10087283,2577.0,2576.7,5.4213193]
[1729694600558,0.10087283,2577.0,2576.8,1.73684612]
[1729694600765,0.10087283,2577.0,2576.7,5.4213193]
[1729694600959,5.61723612,2577.1,2576.7,5.4213193]
[1729694600960,5.61705612,2577.2,2576.7,5.4213193]
[1729694601196,0.0976884,2576.9,2576.7,5.4213193]
[1729694601493,3.88034,2577.1,2576.8,0.71581654]
[1729694601675,3.88034,2577.1,2576.7,5.4213193]
[1729694602295,6.42929612,2577.3,2576.7,3.27731542]
[1729694602595,5.61687612,2577.3,2576.8,4.12332066]
[1729694602789,5.61687612,2577.3,2576.8,3.88064]
[1729694602950,3.88003,2577.3,2576.8,5.61748612]